bitfinex/quotes_SOLUSD_20250406
["timestamp","ask_amount","ask_price","bid_price","bid_amount"]
[1743918375201,81.8,119.95,119.91,0.063]
[1743918375202,22.51125624,119.93,119.91,0.063]
[1743918381515,5.8372,119.93,119.91,0.063]
[1743918381806,22.51125624,119.93,119.91,0.063]
[1743918382006,96.3902,119.95,119.91,25.11771781]
[1743918382007,87.6362,119.95,119.91,25.11771781]
[1743918382386,81.8,119.95,119.92,35.3237051]
[1743918383709,87.6358,119.95,119.92,35.3237051]
[1743918384010,87.6358,119.95,119.92,18.64964886]
[1743918384213,87.6658,119.95,119.92,18.64964886]
[1743918384420,87.6658,119.95,119.91,30.95511781]
[1743918385515,81.83,119.95,119.92,18.64964886]
[1743918390928,81.83,119.95,119.92,35.3237051]
[1743918393314,81.83,119.95,119.92,18.64964886]
[1743918397220,81.83,119.95,119.92,18.71264886]
[1743918398822,81.83,119.95,119.92,35.3867051]
[1743918405537,81.83,119.95,119.92,18.71264886]
[1743918406153,81.83,119.95,119.92,41.2238051]
[1743918409544,81.83,119.95,119.92,35.3867051]
[1743918413228,81.83,119.95,119.93,16.81621781]
[1743918427353,81.83,119.95,119.93,22.65291781]
[1743918427753,81.83,119.95,119.93,16.81621781]
[1743918429054,0.03,119.95,119.94,41.58638981]
[1743918429628,0.03,119.95,119.94,49.52458981]
[1743918431642,0.03,119.96,119.95,0.42648471]
[1743918431848,0.03,119.96,119.95,35.75018981]
[1743918432744,0.03,119.96,119.95,41.58588981]
[1743918436763,0.03,119.98,119.97,58.27218471]
[1743918436946,0.03,120.02,120.0,5.8333]
[1743918437157,0.03,120.02,120.01,50.45588981]
[1743918437874,0.0001,120.02,120.01,50.45588981]
[1743918438563,0.03,120.03,120.02,0.14216157]
[1743918438874,0.03,120.03,120.02,35.75018981]
[1743918439058,0.03,120.03,120.02,41.58248981]
[1743918453179,0.03,120.03,120.01,5.8955]
[1743918453382,0.03,120.03,120.02,0.14216157]
[1743918453983,0.03,120.03,120.01,18.85481043]
[1743918456886,0.03,120.03,120.01,35.52886667]
[1743918460591,0.03,120.03,120.01,18.85481043]
[1743918461489,0.03,120.03,120.01,24.68751043]
[1743918461800,0.03,120.03,120.02,16.95837938]
[1743918461993,0.03,120.03,120.02,35.75018981]
[1743918463697,0.03,120.03,120.02,41.58248981]
[1743918472099,0.03,120.03,120.02,18.79181043]
[1743918472404,0.03,120.03,120.01,22.56975624]
[1743918472405,0.03,120.03,120.01,0.063]
[1743918472707,0.03,120.03,120.01,18.85481043]
[1743918476090,0.03,120.03,120.02,0.063]
[1743918476286,16.70405624,120.03,120.02,0.063]
[1743918479909,0.03,120.03,120.02,0.063]
[1743918480986,0.03,120.03,120.02,0.34732314]
[1743918481593,0.03,120.03,120.02,17.02137938]
[1743918482196,0.03,120.03,120.02,41.64548981]
[1743918487701,0.03,120.03,120.02,24.97143357]
[1743918488311,0.03,120.03,120.02,41.64548981]
[1743918489402,0.03,120.03,120.02,24.97143357]
[1743918492003,16.70405624,120.03,120.02,0.063]
[1743918494910,0.03,120.03,120.02,18.85481043]
[1743918495223,0.03,120.03,120.02,19.13913357]
[1743918495826,0.03,120.03,120.02,24.97143357]
[1743918497927,0.03,120.03,120.02,18.85481043]
[1743918500629,0.03,120.03,120.02,24.68711043]
[1743918502119,0.03,120.03,120.02,18.85481043]
[1743918502323,0.03,120.03,120.02,24.68711043]
[1743918502705,0.03,120.03,120.02,24.97143357]
[1743918502920,0.03,120.03,120.02,41.64548981]
[1743918510521,0.03,120.04,120.03,35.46586667]
[1743918510718,0.03,120.04,120.03,42.44586667]
[1743918511114,0.0001,120.04,120.03,42.73018981]
[1743918511331,0.0001,120.04,120.03,50.39518981]
[1743918512433,0.0001,120.04,120.03,56.22698981]
[1743918512633,0.0001,120.04,120.03,48.56198981]
[1743918512842,0.0001,120.04,120.03,31.88793357]
[1743918514044,0.0001,120.04,120.03,48.56198981]
[1743918522451,0.0001,120.04,120.03,31.88793357]
[1743918522637,0.0001,120.04,120.03,24.62361043]
[1743918522956,0.0001,120.04,120.03,41.58198981]
[1743918527254,0.0001,120.04,120.03,24.90793357]
[1743918527736,0.0001,120.04,120.03,41.58198981]
[1743918530555,0.0001,120.04,120.03,24.90793357]
[1743918534260,0.0001,120.04,120.03,24.62361043]
[1743918537959,0.0001,120.04,120.03,18.79181043]
[1743918539361,0.0001,120.04,120.03,24.62361043]
[1743918541263,0.0001,120.04,120.03,24.68661043]
[1743918541446,0.0001,120.04,120.03,18.85481043]
[1743918543770,0.0001,120.04,120.03,24.68661043]
[1743918551866,0.0001,120.04,120.03,24.97093357]
[1743918552254,0.0001,120.04,120.03,41.64498981]
[1743918553852,0.0001,120.04,120.03,24.97093357]
[1743918554602,0.0001,120.04,120.03,24.68661043]
[1743918554784,16.67415624,120.04,120.03,24.68661043]
[1743918555969,0.0001,120.04,120.03,24.68661043]
[1743918557872,0.0001,120.04,120.03,24.97093357]
[1743918566112,0.0001,120.04,120.03,41.64498981]
[1743918584808,0.0001,120.04,120.03,24.97093357]
[1743918585598,0.0001,120.04,120.03,41.64498981]
[1743918595429,0.0001,120.06,120.05,0.14216157]
[1743918595615,0.0001,120.06,120.05,42.81018981]
[1743918596831,0.0001,120.07,120.06,19.07613357]
[1743918597031,0.0001,120.07,120.06,35.75018981]
[1743918597332,0.0001,120.07,120.06,41.58058981]
[1743918602433,0.03,120.1,120.09,26.0]
[1743918602738,0.03,120.1,120.09,68.81018981]
[1743918602941,0.03,120.11,120.1,19.07613357]
[1743918603236,6.5624,120.17,120.11,35.75018981]
[1743918603845,0.0001,120.12,120.11,41.57808981]
[1743918604217,0.0001,120.12,120.11,164.33991477]
[1743918605651,0.0001,120.12,120.11,97.70668981]
[1743918606540,0.0001,120.12,120.11,164.40291477]
[1743918607639,0.0001,120.12,120.11,164.90291477]
[1743918609319,0.03,120.16,120.15,26.14216157]
[1743918609640,0.03,120.16,120.15,74.63618981]
[1743918610216,0.0001,120.16,120.15,74.63618981]
[1743918610428,0.0001,120.17,120.16,19.07613357]
[1743918610629,0.0001,120.17,120.16,35.75018981]
[1743918611519,0.0001,120.19,120.18,45.07613357]
[1743918611734,0.0001,120.19,120.18,67.57468981]
[1743918611937,0.0001,120.2,120.19,19.07613357]
[1743918612141,0.0001,120.2,120.19,109.52641477]
[1743918613140,0.0001,120.2,120.19,42.83018981]
[1743918614044,0.0001,120.2,120.19,48.65428981]
[1743918614242,0.0001,120.2,120.19,115.35051477]
[1743918615246,0.0001,120.2,120.19,5.96626157]
[1743918615748,0.0001,120.2,120.19,41.57428981]
[1743918616047,0.0001,120.2,120.19,41.28996667]
[1743918616245,0.0001,120.2,120.19,41.57428981]
[1743918623826,0.0001,120.2,120.19,91.61428981]
[1743918624025,0.0001,120.2,120.19,92.11428981]
[1743918624251,0.0001,120.2,120.19,158.81051477]
[1743918625530,0.0001,120.2,120.19,158.31051477]
[1743918625741,1.5603,120.25,120.19,158.81051477]
[1743918626050,6.6502,120.27,120.25,0.28432314]
[1743918626646,6.6502,120.27,120.24,5.8216]
[1743918626849,23.32425624,120.27,120.25,0.14216157]
[1743918627032,6.6502,120.27,120.25,0.14216157]
[1743918627231,23.32425624,120.27,120.25,0.14216157]
[1743918629758,16.67405624,120.26,120.25,0.14216157]
[1743918633063,16.67405624,120.26,120.24,0.14216157]
[1743918633239,16.67405624,120.25,120.24,0.14216157]
[1743918633437,16.70405624,120.27,120.24,0.14216157]
[1743918633861,16.70405624,120.27,120.24,5.96366157]
[1743918635638,0.03,120.27,120.25,0.28432314]
[1743918635834,0.03,120.27,120.26,0.14216157]
[1743918636035,0.03,120.27,120.26,24.61251043]
[1743918636253,0.03,120.27,120.26,41.28656667]
[1743918636647,0.03,120.27,120.26,24.61251043]
[1743918637260,0.03,120.3,120.28,0.14216157]
[1743918637472,0.03,120.3,120.29,61.75018981]
[1743918637842,0.03,120.3,120.29,45.07613357]
[1743918638059,0.03,120.3,120.29,19.07613357]
[1743918640066,18.27045624,120.3,120.25,18.79181043]
[1743918640246,0.03,120.3,120.28,0.14216157]
[1743918640451,0.03,120.3,120.28,0.28432314]
[1743918640667,0.03,120.3,120.29,18.79181043]
[1743918641066,0.03,120.3,120.29,0.14216157]
[1743918641568,0.03,120.3,120.29,18.79181043]
[1743918643369,0.03,120.3,120.29,5.96136157]
[1743918643550,0.03,120.3,120.29,6.24568471]
[1743918651551,16.70405624,120.3,120.27,24.61201043]
[1743918652577,0.03,120.3,120.27,24.61201043]
[1743918655778,0.03,120.3,120.27,24.61191043]
[1743918658680,16.70405624,120.3,120.27,24.61191043]
[1743918660559,0.03,120.3,120.28,0.28432314]
[1743918661269,0.03,120.3,120.29,18.79181043]
[1743918661472,0.03,120.3,120.28,18.79181043]
[1743918662486,0.03,120.3,120.29,5.8192]
[1743918663065,0.03,120.3,120.29,22.91974095]
[1743918663257,0.03,120.3,120.29,24.89533357]
[1743918666893,0.03,120.3,120.29,41.56938981]
[1743918669189,0.03,120.3,120.29,24.89533357]
[1743918672696,0.03,120.3,120.29,41.56938981]
[1743918674479,0.03,120.3,120.29,24.89533357]
[1743918680385,0.03,120.3,120.29,41.56938981]
[1743918680592,0.03,120.3,120.29,24.89533357]
[1743918683401,0.03,120.3,120.27,0.063]
[1743918683699,0.03,120.3,120.28,18.79181043]
[1743918683700,16.70405624,120.3,120.28,18.79181043]
[1743918685007,0.03,120.3,120.28,24.61141043]
[1743918695599,0.03,120.3,120.27,31.883]
[1743918695799,0.03,120.3,120.28,18.79181043]
[1743918696713,0.03,120.3,120.29,0.28432314]
[1743918696904,0.03,120.3,120.29,42.95018981]
[1743918697698,0.03,120.3,120.29,48.76938981]
[1743918698696,0.03,120.3,120.29,32.09533357]
[1743918698891,0.03,120.3,120.29,48.76938981]
[1743918699510,0.03,120.3,120.29,32.09533357]
[1743918699720,0.03,120.3,120.29,48.76938981]
[1743918704229,81.8,120.35,120.31,0.28432314]
[1743918704393,81.8,120.35,120.31,16.95837938]
[1743918705424,81.8,120.35,120.33,18.79181043]
[1743918706125,81.83,120.35,120.33,18.79181043]
[1743918707429,81.83,120.35,120.33,24.60891043]
[1743918708127,0.03,120.35,120.34,35.75018981]
[1743918708327,0.03,120.38,120.35,18.79181043]
[1743918708500,0.03,120.38,120.37,0.28432314]
[1743918709414,0.03,120.38,120.37,42.93018981]
[1743918709618,0.03,120.38,120.37,48.74558981]
[1743918710427,0.03,120.38,120.37,32.07153357]
[1743918710728,0.03,120.38,120.37,26.25613357]
[1743918711331,0.03,120.38,120.37,48.74558981]
[1743918711731,0.03,120.38,120.37,42.93018981]
[1743918711922,0.03,120.38,120.37,26.25613357]
[1743918713805,0.03,120.38,120.37,32.07153357]
[1743918714229,0.03,120.38,120.37,26.25613357]
[1743918716239,0.03,120.38,120.37,32.07153357]
[1743918716623,0.03,120.38,120.37,48.74558981]
[1743918718137,0.03,120.38,120.37,26.25613357]
[1743918719638,0.03,120.38,120.37,32.07153357]
[1743918719839,0.03,120.38,120.37,26.25613357]
[1743918722337,0.03,120.38,120.37,25.97181043]
[1743918722516,16.70405624,120.38,120.34,7.14]
[1743918722721,16.67405624,120.37,120.33,18.79181043]
[1743918722917,16.67405624,120.36,120.33,18.79181043]
[1743918724027,22.48995624,120.36,120.33,18.79181043]
[1743918724429,16.67405624,120.37,120.34,0.28432314]
[1743918725438,16.67405624,120.37,120.33,18.79181043]
[1743918726422,22.48985624,120.36,120.33,18.79181043]
[1743918727532,22.48985624,120.36,120.33,0.14216157]
[1743918727732,16.67405624,120.35,120.33,0.14216157]
[1743918728526,22.48985624,120.36,120.33,0.14216157]
[1743918730946,22.48985624,120.36,120.33,18.79181043]
[1743918731153,16.67405624,120.36,120.33,18.79181043]
[1743918731830,16.67405624,120.37,120.34,7.12]
[1743918732150,81.83,120.38,120.35,18.79181043]
[1743918732353,81.83,120.38,120.36,0.28432314]
[1743918733150,0.03,120.38,120.36,6.10012314]
[1743918734765,0.03,120.38,120.36,22.77417938]
[1743918738468,0.03,120.38,120.37,41.56558981]
[1743918739463,0.03,120.38,120.37,24.89153357]
[1743918739650,0.03,120.38,120.37,41.56558981]
[1743918740749,0.03,120.38,120.37,24.89153357]
[1743918741354,16.67405624,120.47,120.44,26.0]
[1743918741537,7.375251,120.5,120.45,24.88763357]
[1743918741538,16.67405624,120.48,120.45,24.88763357]
[1743918743356,16.69560724,120.5,120.45,41.56168981]
[1743918743564,16.69560724,120.5,120.47,18.79181043]
[1743918743741,16.69560724,120.5,120.46,19.07613357]
[1743918743742,0.021551,120.5,120.46,19.07613357]
[1743918743942,16.69560724,120.5,120.46,19.07613357]
[1743918744138,0.021551,120.5,120.48,0.42648471]
[1743918744378,0.021551,120.5,120.48,19.07613357]
[1743918745246,0.021551,120.5,120.49,6.09392314]
[1743918745562,0.021551,120.5,120.49,0.14216157]
[1743918746839,16.69560724,120.5,120.47,7.1]
[1743918747046,16.67405624,120.48,120.45,5.8112]
[1743918747255,16.67405624,120.48,120.46,18.79181043]
[1743918747467,0.021551,120.5,120.46,18.79181043]
[1743918747468,16.67405624,120.49,120.46,18.79181043]
[1743918747655,16.67405624,120.49,120.46,5.95306157]
[1743918748045,16.69560724,120.5,120.47,0.28432314]
[1743918748443,16.67405624,120.49,120.47,0.28432314]
[1743918748859,0.021551,120.5,120.47,0.28432314]
[1743918749042,16.69560724,120.5,120.47,0.28432314]
[1743918749368,16.69560724,120.5,120.48,0.14216157]
[1743918751676,0.021551,120.5,120.48,0.14216157]
[1743918751967,16.69560724,120.5,120.48,0.14216157]
[1743918752667,16.69560724,120.5,120.48,5.81]
[1743918753768,0.021551,120.5,120.48,5.81]
[1743918757553,0.051551,120.5,120.48,5.81]
[1743918766982,0.051551,120.5,120.47,6.23678471]
[1743918767167,16.72560724,120.5,120.47,6.23678471]
[1743918767465,0.051551,120.5,120.47,6.23678471]
[1743918771876,16.72560724,120.5,120.47,6.23678471]
[1743918772079,0.051551,120.5,120.48,18.64964886]
[1743918772763,0.051551,120.5,120.47,6.23678471]
[1743918773285,0.051551,120.5,120.48,18.64964886]
[1743918774060,0.051551,120.5,120.49,0.42648471]
[1743918774784,0.051551,120.5,120.48,24.45924886]
[1743918778465,16.72560724,120.5,120.48,24.45924886]
[1743918779490,0.051551,120.5,120.48,24.45924886]
[1743918780275,16.67405624,120.49,120.45,5.8115]
[1743918780468,16.67405624,120.48,120.44,24.46134886]
[1743918780669,16.67405624,120.47,120.44,24.46134886]
[1743918782788,16.67405624,120.47,120.43,7.52948471]
[1743918782789,16.67405624,120.45,120.43,0.063]
[1743918782966,72.50692496,120.47,120.43,0.063]
[1743918782967,16.67405624,120.44,120.43,0.063]
[1743918784178,22.48605624,120.44,120.43,0.063]
[1743918784778,16.67405624,120.44,120.43,0.063]
[1743918791676,83.3341,120.46,120.43,0.063]
[1743918791870,98.47405624,120.46,120.43,0.063]
[1743918792103,16.67405624,120.45,120.43,0.063]
[1743918793090,16.67405624,120.44,120.43,0.063]
[1743918794982,22.48605624,120.44,120.43,0.063]
[1743918797778,16.67405624,120.44,120.43,0.063]
[1743918798103,16.67405624,120.45,120.43,0.063]
[1743918799083,98.47405624,120.46,120.43,0.063]
[1743918799882,98.47405624,120.46,120.43,5.8755]
[1743918803401,16.67405624,120.45,120.43,5.8755]
[1743918804006,98.47405624,120.46,120.43,5.8755]
[1743918804585,81.8,120.46,120.43,5.8755]
[1743918804992,81.8,120.46,120.44,18.79181043]
[1743918805789,81.8,120.46,120.44,5.95366157]
[1743918807103,98.47405624,120.46,120.43,5.8755]
[1743918807606,16.67405624,120.45,120.43,0.063]
[1743918807909,16.67405624,120.45,120.43,18.85481043]
[1743918808082,16.67405624,120.45,120.43,0.063]
[1743918808286,16.67405624,120.44,120.43,0.063]
[1743918809307,87.611,120.46,120.43,0.063]
[1743918809494,16.67405624,120.44,120.43,0.063]
[1743918811989,16.67405624,120.45,120.43,0.063]
[1743918818111,81.8,120.46,120.43,0.063]
[1743918818291,16.67405624,120.45,120.43,0.063]
[1743918820199,16.67405624,120.44,120.43,0.063]
[1743918822013,22.48605624,120.44,120.43,0.063]
[1743918822214,16.67405624,120.44,120.43,0.063]
[1743918823696,5.8117,120.45,120.43,0.063]
[1743918823895,16.67405624,120.44,120.43,0.063]
[1743918826716,16.67405624,120.45,120.43,0.063]
[1743918836328,16.70405624,120.45,120.43,0.063]
[1743918841834,0.03,120.45,120.43,0.063]
[1743918844239,0.03,120.45,120.43,5.8755]
[1743918845140,0.03,120.45,120.43,0.063]
[1743918847936,16.70405624,120.45,120.43,0.063]
[1743918851322,0.03,120.45,120.43,0.063]
[1743918854048,16.70405624,120.45,120.43,0.063]
[1743918854750,16.67405624,120.44,120.43,0.063]
[1743918858359,22.48605624,120.44,120.43,0.063]
[1743918862147,22.51605624,120.44,120.43,0.063]
[1743918862467,26.70759508,120.44,120.43,0.063]
[1743918862647,22.51605624,120.44,120.43,0.063]
[1743918877665,16.67405624,120.39,120.38,1.8897597]
[1743918887693,16.67405624,120.39,120.38,1.9527597]
[1743918890304,5.8134,120.41,120.38,1.9527597]
[1743918890601,16.67405624,120.41,120.38,7.7676597]
[1743918900624,81.8,120.43,120.39,24.79835624]
[1743918900823,81.8,120.43,120.42,18.79181043]
[1743918900997,0.03,120.44,120.42,35.3237051]
[1743918901325,0.03,120.44,120.42,18.64964886]
[1743918901897,0.03,120.43,120.42,18.79181043]
[1743918902808,0.03,120.43,120.42,24.60471043]
[1743918903207,0.03,120.43,120.42,41.56308981]
[1743918903408,0.03,120.43,120.42,48.06218981]
[1743918904307,0.03,120.43,120.42,49.59328981]
[1743918906027,0.03,120.43,120.42,32.91923357]
[1743918906324,0.03,120.43,120.42,49.59328981]
[1743918912144,0.03,120.43,120.42,32.91923357]
[1743918912439,0.03,120.43,120.42,32.63491043]
[1743918917848,0.03,120.43,120.42,49.59328981]
[1743918919135,0.0001,120.44,120.43,0.42648471]
[1743918919446,0.0001,120.44,120.43,35.75018981]
[1743918919857,0.0001,120.44,120.43,41.56268981]
[1743918933672,0.0001,120.45,120.44,19.07613357]
[1743918933837,0.0001,120.45,120.44,42.85018981]
[1743918935754,0.0001,120.45,120.44,48.66218981]
[1743918937952,0.0001,120.45,120.44,31.98813357]
[1743918938125,0.0001,120.45,120.44,48.66218981]
[1743918952571,0.0001,120.45,120.44,98.54218981]
[1743918955577,0.0001,120.45,120.44,48.66218981]
[1743918958078,0.0001,120.45,120.44,31.98813357]
[1743918958286,0.0001,120.45,120.44,48.66218981]
[1743918960778,0.0001,120.45,120.44,29.72821781]
[1743918961079,0.0001,120.45,120.44,31.70381043]
[1743918961376,0.0001,120.45,120.44,18.79181043]
[1743918961973,0.0001,120.45,120.44,24.60381043]
[1743918962956,0.0001,120.45,120.44,24.88813357]
[1743918963161,0.0001,120.45,120.44,41.56218981]
[1743918967168,0.0001,120.45,120.44,24.88813357]
[1743918967370,0.0001,120.45,120.44,41.56218981]
[1743918968987,0.0001,120.45,120.44,41.62518981]
[1743918973082,0.0001,120.45,120.44,24.95113357]
[1743918974183,0.0001,120.45,120.44,24.66681043]
[1743918974488,0.0001,120.45,120.44,41.62518981]
[1743918976587,0.0001,120.45,120.44,24.95113357]
[1743918976890,0.0001,120.45,120.44,41.62518981]
[1743918982297,0.0001,120.45,120.44,24.95113357]
[1743918982497,0.0001,120.45,120.44,41.62518981]
[1743918992996,0.0001,120.45,120.44,91.50518981]
[1743918993192,0.0001,120.45,120.44,41.62518981]
[1743918995191,0.0001,120.45,120.44,24.95113357]
[1743918998910,0.0001,120.45,120.44,41.62518981]
[1743919006017,0.0001,120.45,120.44,24.95113357]
[1743919006315,0.0001,120.45,120.44,24.66681043]
[1743919007817,0.0001,120.45,120.44,41.62518981]
[1743919008817,0.0001,120.45,120.44,24.95113357]
[1743919012217,0.0001,120.45,120.44,6.01716157]
[1743919012518,0.0001,120.45,120.44,24.66681043]
[1743919015416,0.0001,120.45,120.44,0.063]
[1743919019515,16.67415624,120.45,120.44,0.063]
[1743919020239,0.0001,120.45,120.44,0.063]
[1743919029241,0.0001,120.45,120.44,35.52886667]
[1743919030226,0.0001,120.45,120.44,41.34086667]
[1743919032953,0.0001,120.45,120.44,22.69121781]
[1743919033254,0.0001,120.45,120.44,24.66681043]
[1743919041258,0.0001,120.45,120.44,5.875]
[1743919042834,0.0001,120.45,120.44,26.063]
[1743919043037,0.0001,120.45,120.44,0.063]
[1743919049863,0.0001,120.45,120.44,41.62518981]
[1743919058163,0.0001,120.45,120.44,24.95113357]
[1743919058365,0.0001,120.45,120.44,41.62518981]
[1743919059573,0.0001,120.45,120.44,48.60518981]
[1743919078562,0.0001,120.45,120.44,31.93113357]
[1743919078856,0.0001,120.45,120.44,48.60518981]
[1743919080696,0.0001,120.45,120.44,0.063]
[1743919082891,0.0001,120.45,120.44,35.52886667]
[1743919083089,0.0001,120.45,120.44,35.81318981]
[1743919083890,0.0001,120.45,120.44,41.62518981]
[1743919085092,0.0001,120.45,120.44,5.875]
[1743919087872,0.0001,120.45,120.44,22.54905624]
[1743919089691,0.0001,120.45,120.44,5.875]
[1743919091684,0.0001,120.45,120.44,0.063]
[1743919121420,16.67415624,120.45,120.44,0.063]
[1743919124328,22.48565624,120.45,120.44,0.063]
[1743919128017,16.67415624,120.45,120.44,0.063]
[1743919129106,0.0001,120.45,120.44,0.063]
[1743919149645,16.67415624,120.45,120.44,0.063]
[1743919149844,35.75028981,120.45,120.44,0.063]
[1743919150828,17.10064095,120.45,120.44,0.063]
[1743919151749,67.56178981,120.45,120.44,0.063]
[1743919151960,41.56178981,120.45,120.44,0.063]
[1743919153932,236.02178981,120.45,120.44,0.063]
[1743919155658,243.00178981,120.45,120.44,0.063]
[1743919157248,243.50178981,120.45,120.44,0.063]
[1743919159347,19.07613357,120.44,120.42,0.0629]
[1743919159662,230.56425624,120.45,120.38,1.9527597]
[1743919159663,26.0,120.4,120.38,1.9527597]
[1743919159962,98.47405624,120.39,120.38,1.9527597]
[1743919161662,104.28845624,120.39,120.38,1.9527597]
[1743919163959,98.47405624,120.39,120.38,1.9527597]
[1743919164555,16.67405624,120.39,120.38,1.9527597]
[1743919165569,26.0,120.39,120.38,1.9527597]
[1743919165769,42.67405624,120.39,120.38,1.9527597]
[1743919167273,48.48845624,120.39,120.38,1.9527597]
[1743919173774,48.48845624,120.39,120.38,5.97e-05]
[1743919173950,48.98845624,120.39,120.38,5.97e-05]
[1743919177173,202.76458981,120.39,120.38,5.97e-05]
[1743919177769,397.32458981,120.39,120.38,5.97e-05]
[1743919178971,378.67494095,120.39,120.38,5.97e-05]
[1743919179177,397.32458981,120.39,120.38,5.97e-05]
[1743919180987,0.5,120.38,120.33,1.6022]
[1743919181280,16.67405624,120.34,120.33,0.063]
[1743919182558,98.47405624,120.36,120.33,0.063]
[1743919182767,81.8,120.36,120.33,0.063]
[1743919184183,104.28995624,120.36,120.33,0.063]
[1743919195683,98.47405624,120.36,120.33,0.063]
[1743919197490,104.28995624,120.36,120.33,0.063]
[1743919198173,98.47405624,120.36,120.33,0.063]
[1743919198385,81.8,120.36,120.33,0.063]
[1743919199970,81.8,120.36,120.34,18.26345624]
[1743919200381,81.8,120.36,120.35,16.67405624]
[1743919200580,81.8,120.36,120.35,42.35068981]
[1743919202294,81.8,120.36,120.35,48.16698981]
[1743919202585,0.03,120.38,120.36,18.79181043]
[1743919202981,0.03,120.38,120.37,16.67405624]
[1743919203376,0.03,120.38,120.37,22.48945624]
[1743919203572,0.03,120.38,120.37,43.10018981]
[1743919203877,0.03,120.38,120.37,49.52038981]
[1743919204481,81.83,120.42,120.38,0.28432314]
[1743919204681,81.83,120.42,120.4,16.67405624]
[1743919205296,81.83,120.42,120.41,0.14216157]
[1743919205478,0.03,120.42,120.41,24.60521043]
[1743919205676,0.03,120.42,120.41,41.27926667]
[1743919205874,0.03,120.42,120.41,49.23406667]
[1743919211414,0.03,120.42,120.38,24.66615624]
[1743919211582,16.70405624,120.42,120.38,7.9921]
[1743919212677,16.70405624,120.42,120.38,30.48095624]
[1743919212879,0.03,120.42,120.38,30.48095624]
[1743919213098,0.03,120.42,120.39,16.67405624]
[1743919213502,0.03,120.42,120.4,16.67405624]
[1743919214092,0.03,120.42,120.39,16.67405624]
[1743919214294,0.03,120.42,120.39,35.3237051]
[1743919215504,0.03,120.42,120.39,41.1379051]
[1743919215686,0.03,120.42,120.4,16.67405624]
[1743919216081,0.03,120.42,120.41,0.14216157]
[1743919216309,0.03,120.42,120.41,35.46586667]
[1743919216804,0.03,120.42,120.4,16.67405624]
[1743919217705,0.03,120.42,120.39,41.28006667]
[1743919218092,0.03,120.42,120.39,24.60601043]
[1743919218413,0.03,120.42,120.39,18.79181043]
[1743919219087,0.03,120.42,120.39,24.60611043]
[1743919219710,0.03,120.42,120.39,41.28016667]
[1743919224207,0.03,120.42,120.38,30.48095624]
[1743919224404,98.50405624,120.42,120.37,22.48905624]
[1743919225517,98.50405624,120.42,120.38,0.063]
[1743919225708,104.31715624,120.42,120.38,0.063]
[1743919226217,16.67405624,120.4,120.35,24.77785624]
[1743919227809,22.48805624,120.4,120.35,30.59395624]
[1743919229218,22.48805624,120.4,120.36,22.48985624]
[1743919229397,5.814,120.4,120.36,22.48985624]
[1743919229597,22.48775624,120.41,120.36,22.48985624]
[1743919230525,5.8137,120.41,120.36,22.48985624]
[1743919230814,22.48775624,120.41,120.36,22.48985624]
[1743919231011,81.83,120.42,120.38,16.67405624]
[1743919231804,16.67405624,120.41,120.37,16.67405624]
[1743919232517,87.6431,120.42,120.37,16.67405624]
[1743919232699,104.31715624,120.42,120.37,16.67405624]
[1743919233005,104.31715624,120.42,120.37,22.48935624]
[1743919233598,16.67405624,120.41,120.36,22.48965624]
[1743919234821,22.48745624,120.41,120.36,22.48965624]
[1743919236908,98.47405624,120.4,120.35,49.38586667]
[1743919238120,104.28825624,120.4,120.35,49.38586667]
[1743919238926,104.28825624,120.4,120.35,49.2437051]
[1743919239222,104.28825624,120.4,120.35,41.2029051]
[1743919239520,16.67405624,120.38,120.35,0.063]
[1743919239710,16.67405624,120.37,120.35,0.063]
[1743919240504,22.48965624,120.37,120.35,0.063]
[1743919244029,16.67405624,120.36,120.35,0.063]
[1743919245533,22.48985624,120.36,120.35,0.063]
[1743919256117,16.67405624,120.37,120.35,0.063]
[1743919256737,16.67405624,120.36,120.35,0.063]